Cogmind - Beta 16 @@@ ROGUE MODE // 2025.11.18 @ 15:37:39 // Winter2019/RPGLIKE Player: Gallgagger Result: Self-destructed Performance ------------- Evolutions (0) 0 Regions Visited (3) 600 Robots Destroyed (64) 320 Value Destroyed (2102) 2102 Prototype IDs (12) 240 Alien Tech Used (0) 0 Bonus (147) 147 TOTAL SCORE: 3409 Bonus ------- High Alert Combat Kills 147 Cogmind --------- Core Integrity 193/650 Matter 290/300 Energy 185/185 System Corruption 0% Temperature Cool (0) Movement Treading (160) Location -7/Recycling Parts ------- > --- POWER (2+1) ------ Light Ion Engine Light Nuclear Core > --- PROPULSION (3+1) - Improved Treads Improved Treads Improved Treads > --- UTILITY (4+1) ---- Light Humpback Scrap Shield Rainbow Chip (+) > --- WEAPON (2+1) ----- Riot Gun Autobeam Barrage Gun (+) > --- INVENTORY (22) --- Subdweller Monowheel Subdweller Monowheel Improved Terrain Scanner Seismic Detector Riot Gun Barrage Gun SUBCON Basin (Full) Peak State ------------ > --- POWER ------------ Light Ion Engine Light Nuclear Core > --- PROPULSION ------- Improved Treads Improved Treads Improved Treads > --- UTILITY ---------- Light Humpback Scrap Shield Rainbow Chip > --- WEAPON ----------- Riot Gun Autobeam Barrage Gun > --- INVENTORY -------- Subdweller Monowheel Subdweller Monowheel Improved Terrain Scanner Seismic Detector Riot Gun Barrage Gun SUBCON Basin [Rating: 56] Favorites ----------- Power Light Ion Engine Engine Light Ion Engine Power Core Light Nuclear Core Propulsion Improved Treads Treads Improved Treads Wheel Compact Wheel Flight Unit Flight Unit Utility Scrap Shield Device Seismic Detector Storage Light Humpback Processor Rainbow Chip Protection Scrap Shield Weapon Barrage Gun Energy Gun Autobeam Energy Cannon Subdweller Beam Cannon Ballistic Gun Barrage Gun Build | -11 -10 -10 -7 ------- Run | Yrd Mat Sub Rec Slots Evolved 7 | 3 3 1 . Power 1 | . 1 . . Propulsion 2 | 1 1 . . Utility 3 | 1 1 1 . Weapon 1 | 1 . . . Parts Attached 28 | 7 11 10 . Power 3 | 1 2 . . Engine 2 | 1 1 . . Core 1 | . 1 . . Reactor . | . . . . Propulsion 8 | 2 5 1 . Treads 4 | . 3 1 . Leg . | . . . . Wheel 2 | 2 . . . Hover . | . . . . Flight 2 | . 2 . . Utility 8 | 2 4 2 . Device 2 | 2 . . . Storage 1 | . . 1 . Processor 1 | . . 1 . Hackware . | . . . . Protection 4 | . 4 . . Artifact . | . . . . Weapon 9 | 2 . 7 . Energy Gun 5 | 1 . 4 . Energy Cannon 1 | . . 1 . Ballistic Gun 3 | 1 . 2 . Ballistic Cannon . | . . . . Launcher . | . . . . Special Weapon . | . . . . Impact Weapon . | . . . . Slashing Weapon . | . . . . Piercing Weapon . | . . . . Special Melee Weapon . | . . . . Unidentified Prototypes 1 | . . 1 . Parts Lost . | . . . . Power . | . . . . Propulsion . | . . . . Utility . | . . . . Weapon . | . . . . Highest Loss Streak . | . . . . To Critical Strikes . | . . . . Average Backups 7 | . . 10 6 Power . | . . . . Propulsion 2 | . . 3 2 Utility 2 | . . 2 2 Weapon 3 | . . 4 2 Tool/Special . | . . . . Unused Backups 10 | . . 7 3 Power . | . . . . Propulsion 5 | . . 3 2 Utility 1 | . . 1 . Weapon 4 | . . 3 1 Tool/Special . | . . . . Average Slot Usage (%) 78 | . 92 73 73 Engine 8 | . 12 7 6 Core 5 | . . 7 6 Treads 20 | . 13 23 20 Wheel 2 | . 9 . . Flight 1 | . 5 . . Device 5 | . 19 . . Storage 5 | . . 7 6 Processor 2 | . . 3 6 Protection 7 | . 6 7 6 Energy Gun 9 | . 11 9 13 Ballistic Gun 7 | . 11 5 6 Peak Build Rating 56 | 9 17 56 56 Average Rating 25 | 5 11 30 56 On Entrance 20 | . 9 17 56 Avg Prop Armor Cover (%) 1 | . 1 . . Naked Turns . | . . . . Heaviest Build 78 | 7 29 78 77 Greatest Support 79 | 26 74 79 79 Greatest Overweight (x) 1 | . 1 1 . Average Overweight (x) . | . . . . Largest Inventory Capacity 22 | 2 2 22 22 Average Capacity 15 | 2 2 21 22 Most Carried 22 | . 2 22 21 Average Carried 9 | . 1 12 21 Final Capacity 22 | 2 2 22 22 Final Carried 21 | . 2 21 21 Class Distribution -------------------- 68% | Hauler-Mutant 20% | Mutant 9% | Scavenger-Mutant Dominant Class ---------------- Mutant | -10/Materials Hauler-Mutant | -10/Subcaves Hauler-Mutant | -7/Recycling Resources | -11 -10 -10 -7 ----------- Run | Yrd Mat Sub Rec Matter Collected 1177 | 282 221 674 . Remotely . | . . . . Salvage Created 2190 | 108 1147 935 . Parts 146 | 6 74 66 . Haulers Intercepted 1 | . 1 . . Recyclers Shooed 1 | . 1 . . Parts Field Recycled . | . . . . Retrieved Matter . | . . . . Parts Self-Destructed 16 | . . 16 . Prevented . | . . . . Parts Restored . | . . . . Kills | -11 -10 -10 -7 ------- Run | Yrd Mat Sub Rec Combat Hostiles Destroyed 58 | . 33 25 . Guns 50 | . 33 17 . Cannons 7 | . . 7 . Classes Destroyed 10 | 2 4 4 . Tunneler 1 | 1 . . . Hauler 1 | . 1 . . Recycler 1 | 1 . . . Turret 2 | . . 2 . Watcher 1 | . 1 . . Swarmer 13 | . 9 4 . Grunt 26 | . 24 2 . Sentry 1 | . . 1 . Artisan 1 | . . 1 . Subdweller 18 | . . 18 . Best Kill Streak 7 | 1 7 3 . Combat Bots Only 7 | . 7 3 . Max Kills in Single Turn 2 | 1 2 1 . Gunslinging 1 | . 1 . . Exploded . | . . . . Melee . | . . . . Uniques/NPCs Destroyed . | . . . . Combat | -11 -10 -10 -7 -------- Run | Yrd Mat Sub Rec Hostile Shots Fired 267 | . 148 119 . Missed 74 | . 39 35 . Hits 193 | . 109 84 . Projectile 193 | . 109 84 . Critical Strikes 4 | . 1 3 . Damage Taken 2847 | . 1192 1655 . Core 1934 | . 919 1015 . Absorbed by Shields . | . . . . Redirected to Core 1536 | . 638 898 . Core Remaining (%) 100 | 100 . . . Volleys Fired 257 | 12 87 158 . Largest 2 | 2 2 2 . Hottest 140 | 60 60 140 . Shots Fired 452 | 24 174 254 . Gun 430 | 24 174 232 . Cannon 22 | . . 22 . Launcher . | . . . . Special . | . . . . Kinetic 215 | 12 87 116 . Thermal 237 | 12 87 138 . Explosive . | . . . . Electromagnetic . | . . . . Robot Hit Streak 54 | 4 19 54 . Robot Miss Streak 6 | 6 4 4 . Penetration Max . | . . . . Secondary Targets 6 | . 6 . . Max Gunslinging Chain 1 | . 1 . . Autonomous 29 | . . 29 . Shots Hit Robots 276 | 12 131 133 . Core Hits 128 | 3 70 55 . Critical Kills 2 | . 1 1 . Critical Parts Destroyed 3 | . . 3 . Critical Strikes 6 | . 1 5 . Meltdown 1 | . . 1 . Destroy 5 | . 1 4 . Melee Attacks . | . . . . Impact . | . . . . Slashing . | . . . . Piercing . | . . . . Sneak Attacks . | . . . . Combat Hostiles . | . . . . Follow-up Attacks . | . . . . Damage Inflicted 3875 | 124 1322 2429 . Guns 3297 | 124 1300 1873 . Cannons 556 | . . 556 . Explosions . | . . . . Melee . | . . . . Ramming 22 | . 22 . . Kinetic 1104 | 46 497 561 . Thermal 2749 | 78 803 1868 . Explosive . | . . . . Electromagnetic . | . . . . Impact . | . . . . Slashing . | . . . . Piercing . | . . . . Highest Corruption . | . . . . Average Corruption . | . . . . Corruption Purged . | . . . . Corruption Blocked . | . . . . Overload Shots . | . . . . Overflow Damage . | . . . . Projectiles . | . . . . Explosions . | . . . . Melee . | . . . . Knockbacks . | . . . . Impact . | . . . . Kinetic . | . . . . Secondary . | . . . . Self-Inflicted Damage . | . . . . Shots . | . . . . Rammed 5 | . 5 . . Targets Rammed 5 | . 5 . . Kicked . | . . . . Crushed . | . . . . Highest Temperature 270 | . 1 270 . Average Temperature 90 | . 1 96 . Received Heat Transfer 1226 | . 558 668 . Siege Activations . | . . . . Martial Activations . | . . . . Shielding Activations . | . . . . Robots Disrupted . | . . . . Combat Hostiles . | . . . . Robots Corrupted . | . . . . Combat Hostiles . | . . . . Parts Fried . | . . . . Impact Corruptions . | . . . . Robots Melted 1 | . . 1 . Combat Hostiles 1 | . . 1 . Parts Melted 8 | . . 8 . Heat Transferred 5340 | 175 1775 3390 . Parts Sabotaged . | . . . . Parts Stolen . | . . . . Parts Stripped . | . . . . Power Chain Reactions . | . . . . Alert | -11 -10 -10 -7 ------- Run | Yrd Mat Sub Rec Maximum Alert Level 3 | . 3 . . Low Security (%) 28 | 100 22 . 100 Level 1 16 | . 17 . . Level 2 46 | . 51 . . Level 3 8 | . 8 . . Level 4 . | . . . . Level 5 . | . . . . High Security . | . . . . Max Security . | . . . . Peak Influence 722 | 5 722 . 2 Initial 2 | . . . 2 Average 426 | 1 463 . 2 Influence Increases 1355 | 10 1110 235 . Destroy 0b10 Robot/C 840 | . 660 180 . Destroy 0b10 Robot/NC 20 | 10 10 . . Destroy Leader 174 | . 164 10 . Successful Hack 6 | . 6 . . Select Force Hacks 210 | . 210 . . Lose Combat Pursuer 105 | . 60 45 . Influence Decreases 1353 | 10 468 872 3 Entered New Map 312 | . . 309 3 Time Decay 1041 | 10 468 563 . Squads Dispatched 10 | . 10 . . Investigation 8 | . 8 . . Extermination . | . . . . Reinforcement 2 | . 2 . . Assault . | . . . . Garrison . | . . . . Intercept . | . . . . Searches Triggered . | . . . . Construction Impeded . | . . . . Haulers Reinforced . | . . . . Active Scanning Responses . | . . . . Cargo Convoy Interrupts . | . . . . Stealth | -11 -10 -10 -7 --------- Run | Yrd Mat Sub Rec Distress Signals 4 | . 4 . . Communications Jammed . | . . . . Distress Signals . | . . . . Times Spotted 76 | . 48 28 . Peak Tracking Total 5 | . 5 3 . Tactical Retreats 7 | . 4 3 . Traps | -11 -10 -10 -7 ------- Run | Yrd Mat Sub Rec Traps Triggered 4 | . 2 2 . Indirectly . | . . . . Trap Hack Attempts . | . . . . Triggered . | . . . . Disarmed . | . . . . Reprogrammed . | . . . . Reused . | . . . . Traps Extracted . | . . . . Installed . | . . . . Triggered . | . . . . Machines | -11 -10 -10 -7 ---------- Run | Yrd Mat Sub Rec Machines Disabled 1 | . . 1 . Max in Single Turn 1 | . . 1 . Machines Repaired . | . . . . Machines Dismantled . | . . . . Machines Sabotaged 3 | . 3 . . Overloaded Fab Kills . | . . . . Hacking | -11 -10 -10 -7 --------- Run | Yrd Mat Sub Rec Machines Accessed 11 | . 7 4 . Terminals 5 | . 5 . . Fabricators . | . . . . Repair Stations . | . . . . Recycling Units 2 | . 2 . . Scanalyzers . | . . . . Garrison Access . | . . . . Total Hacks 18 | . 11 7 . Successful 16 | . 9 7 . Failed 2 | . 2 . . Catastrophic . | . . . . Database Lockouts . | . . . . Manual 12 | . 12 . . Terminals 9 | . 9 . . Fabricators . | . . . . Repair Stations . | . . . . Recycling Units 2 | . 2 . . Scanalyzers . | . . . . Garrison Access . | . . . . Terminal Hacks 9 | . 2 7 . Record 4 | . . 4 . Robot Analysis 2 | . 2 . . Open Door 1 | . . 1 . Proto ID Catalog 1 | . . 1 . Release Object 1 | . . 1 . Fabricator Hacks . | . . . . Repair Station Hacks . | . . . . Recycling Unit Hacks . | . . . . Scanalyzer . | . . . . Garrison Access Hacks . | . . . . Unauthorized Hacks 7 | . 7 . . Terminals 5 | . 5 . . Sabotage 5 | . 5 . . Fabricators . | . . . . Repair Stations . | . . . . Recycling Units 2 | . 2 . . Tunnel 2 | . 2 . . Scanalyzers . | . . . . Garrison Access . | . . . . Data Cores Recovered . | . . . . Used . | . . . . Hacking Detections 1 | . 1 . . Full Trace Events . | . . . . Feedback Events . | . . . . Feedback Blocked . | . . . . Robot Schematics Acquired . | . . . . Robots Built . | . . . . Authchips . | . . . . Time . | . . . . Total Robot Build Rating . | . . . . Part Schematics Acquired . | . . . . Parts Built . | . . . . Authchips . | . . . . Time . | . . . . Total Part Build Rating . | . . . . Part Studies Acquired . | . . . . Parts Repaired . | . . . . Time . | . . . . Parts Recycled . | . . . . Recycled Matter . | . . . . Retrieved Matter . | . . . . Retrieved Components . | . . . . Parts Scanalyzed . | . . . . Part Schematics Acquired . | . . . . Parts Damaged . | . . . . Bothacking | -11 -10 -10 -7 ------------ Run | Yrd Mat Sub Rec Used RIF Installer . | . . . . Robots Hacked . | . . . . Non-combat . | . . . . Combat . | . . . . Robot Hacks Applied . | . . . . Relay Couplers Released . | . . . . Fabnet Peak Effective % . | . . . . Robots Rewired . | . . . . Allies Hacked . | . . . . Hacks Repelled . | . . . . Allies | -11 -10 -10 -7 -------- Run | Yrd Mat Sub Rec Total Allies . | . . . . Largest Group . | . . . . Highest-Rated Group . | . . . . Highest-Rated Ally . | . . . . Total Orders . | . . . . Ally Attacks . | . . . . Total Damage . | . . . . Kills . | . . . . Allies Corrupted . | . . . . Allies Melted . | . . . . Intel | -11 -10 -10 -7 ------- Run | Yrd Mat Sub Rec Active Infowar (turns) 1535 | 49 1323 163 . Terrain 815 | 18 797 . . Seismic 1535 | 49 1323 163 . Robot Analysis Total 2 | . 2 . . Derelict Logs Recovered 1 | . . 1 . Drone Launches . | . . . . Drone Recoveries . | . . . . Exploration | -11 -10 -10 -7 ------------- Run | Yrd Mat Sub Rec Turns Passed 5505 | 110 1431 3949 15 Spaces Moved 3087 | 63 894 2121 9 Core 2 | 2 . . . Treads 2489 | . 359 2121 9 Legs . | . . . . Wheels 225 | 61 164 . . Hover . | . . . . Flight 371 | . 371 . . Fastest Speed 37 | 50 37 160 160 Average Speed 140 | 89 96 160 160 Slowest Speed 240 | 100 160 240 160 Overloaded Moves . | . . . . Propulsion Burnouts . | . . . . Robots Hopped 4 | . 4 . . Potential Cave-ins . | . . . . Cave-ins Triggered . | . . . . Exploration Rate (%) 50 | 4 98 95 6 Regions Visited 3 Branch Regions 2 Pre-discovered Areas 3 | . 2 1 . Known Exits Taken . | . . . . Unknown Exits Taken 3 | 1 1 1 . Scrap Searched 9 | . . 9 . Spaces Dug 1 | . . 1 . Terrain Destroyed 2 | . . 2 . Melee . | . . . . Projectile 2 | . . 2 . AOE . | . . . . Terrain Rammed . | . . . . Walls Destroyed . | . . . . Machines Disabled . | . . . . Actions | -11 -10 -10 -7 --------- Run | Yrd Mat Sub Rec Total 3842 | 91 1301 2441 9 Wait 309 | 10 244 55 . Move 3076 | 62 885 2120 9 Hop 4 | . 4 . . Pick Up 26 | . 8 18 . Fast Attach 18 | 7 8 3 . Attach 2 | . . 2 . Detach 2 | . 1 1 . Swap 23 | . 6 17 . Drop 27 | . 11 16 . Fire 257 | 12 87 158 . Melee . | . . . . Ram . | . . . . Kick . | . . . . Crush 5 | . 5 . . Escape Stasis . | . . . . Rewire . | . . . . Trap . | . . . . Miscellaneous 93 | . 42 51 . Route ------- -11/Scrapyard -10/Materials (discovered 5 exits: [*Mat x3] / [*Min] / *Sub) -10/Subcaves (discovered 3 exits: [*Mat x2] / [*Rec]) -7/Recycling History --------- Turn | Location | Event 1 | -11/Scrapyard | Upgraded with Propulsion slot (x1) 1 | -11/Scrapyard | Upgraded with Utility slot (x1) 1 | -11/Scrapyard | Upgraded with Weapon slot (x1) 30 | -11/Scrapyard | Discovered new exit (range 13) 111 | -11/Scrapyard | Entered Materials 277 | -10/Materials | Core integrity fell below 50% 307 | -10/Materials | Discovered new exit (range 10) 315 | -10/Materials | Build established: Mutant 423 | -10/Materials | Reached level 2 510 | -10/Materials | Discovered new exit (range 6) 583 | -10/Materials | Discovered new exit (range 15) 685 | -10/Materials | Discovered new exit (range 9) 694 | -10/Materials | Reached level 3 762 | -10/Materials | Upgraded with Power slot (x1) 762 | -10/Materials | Upgraded with Utility slot (x1) 776 | -10/Materials | Destroyed 7 combat bots 799 | -10/Materials | Reached level 4 811 | -10/Materials | Derelicts attacked the area 856 | -10/Materials | Discovered new exit (range 3) 885 | -10/Materials | Upgraded with Propulsion slot (x1) 888 | -10/Materials | Build established: Scavenger-Mutant 1192 | -10/Materials | Build established: Mutant 1542 | -10/Materials | Entered Subcaves 1543 | -10/Subcaves | Approached by a straggling Scientist 1544 | -10/Subcaves | Reached level 5 1705 | -10/Subcaves | Upgraded with Utility slot (x1) 1743 | -10/Subcaves | A swath of the cavern ceiling suddenly collapsed 1913 | -10/Subcaves | Discovered new exit (range 9) 1998 | -10/Subcaves | Build established: Hauler-Mutant 2435 | -10/Subcaves | Shifting Twisted Machinery released Spk. Treads 2555 | -10/Subcaves | Shifting Twisted Machinery released Sub. Shrapnel Launcher 2689 | -10/Subcaves | Shifting Twisted Machinery released Sub. Optics 3144 | -10/Subcaves | Discovered new exit (range 9) 3315 | -10/Subcaves | A swath of the cavern ceiling suddenly collapsed 3394 | -10/Subcaves | Discovered new exit (range 8) 3427 | -10/Subcaves | A Subdweller sparked back to life 3427 | -10/Subcaves | A Subdweller sparked back to life 3427 | -10/Subcaves | A Subdweller sparked back to life 3468 | -10/Subcaves | Found Prototype Processor 3468 | -10/Subcaves | Identified Rainbow Chip 3470 | -10/Subcaves | Attached Rainbow Chip, gained temporary slots: Power, Propulsion, Utility, Weapon 3523 | -10/Subcaves | Core integrity fell below 20% 4307 | -10/Subcaves | Shifting Twisted Machinery released Shrapnel Trap 4345 | -10/Subcaves | Shifting Twisted Machinery released Flamer 4454 | -10/Subcaves | Visited Clippyterm 4459 | -10/Subcaves | Learned 40 Factory zone layouts 4479 | -10/Subcaves | Shifting Twisted Machinery released Sub. Power Source 5087 | -10/Subcaves | Learned 8 Materials zone layouts 5211 | -10/Subcaves | Found SUBCON Basin 5256 | -10/Subcaves | Learned location of Zion (-7) 5256 | -10/Subcaves | Met a Zionite searching for "candidates" 5356 | -10/Subcaves | Visited 4L-MR0's lab 5491 | -10/Subcaves | Entered Recycling 5493 | -7/Recycling | Reached level 6 5506 | -7/Recycling | Self-destructed Last Messages --------------- Arachnoskeleton Cargo Legs Tripod Weapons Platform Hoverbase Flightbrick Gun Armor Tower Shield Power Bank Rainbow Chip VL-GR5's Exoskeleton "Deathgrip" Powered Cannon 05373_ 4L-MR0 mumbles: "Who knows where that last prototype ended up, probably tossed aside somewhere as if it were useless junk..." 05474_ Acquired 18 matter. 05485_ Acquired 2 matter. 05490_ Upgraded: Mass Support (+5) LOCATION=UNKNOWN GOAL=ESCAPE 05493_ Reached level 6. Map ----- +----------------------------------------------------+ | ?????????????????????????????????????????????????? | | ?????????????????????????????????????????????????? | | ?????????????????????????????????????????????????? | | ?????????????????????????????????????????????????? | | ?????????????????????????????????????????????????? | | ?????????????????????????????????????????????????? | | ?????????????????????????????????????????????????? | | ?????????????????????????????????????????????????? | | ?????????????????????????????????????????????????? | | ?????????????????????????????????????????????????? | | ?????????????????????????????????????????????????? | | ?????????????????????????????????????????????????? | | ?????????????????????????????????????????????????? | | ?????????????????????????????????????????????????? | | ?????????????????????????????????????????????????? | | ?????????????????????????????????????????????????? | | ?????????????????????????????????????????????????? | | ????????????????????????#####????????????????????? | | ????????????????????????# ##########???????????? | | ????????????????????????# # #???????????? | | ????????????????????????# # #???????????? | | ????????????????????????# # #???????????? | | ????????????????????????# # #???????????? | | ????????????????????????# + #???????????? | | ?????????????????######## # #???????????? | | ?????????? @ # #???????????? | | ?????????? # #???????????? | | ?????????? " # #??????????? | | ???????????###### """ ###############??????????? | | ????????????????# "" ?????????????????????????? | | ????????????????# """ ?????????????????????????? | | ?????????????????? "" ?????????????????????????? | | ????????????????? """ ??????????????????????????? | | ????????????????# """ ??????????????????????????? | | ????????????????# ??"" ??????????????????????????? | | ?????????????????????????????????????????????????? | | ?????????????????????????????????????????????????? | | ?????????????????????????????????????????????????? | | ?????????????????????????????????????????????????? | | ?????????????????????????????????????????????????? | | ?????????????????????????????????????????????????? | | ?????????????????????????????????????????????????? | | ?????????????????????????????????????????????????? | | ?????????????????????????????????????????????????? | | ?????????????????????????????????????????????????? | | ?????????????????????????????????????????????????? | | ?????????????????????????????????????????????????? | | ?????????????????????????????????????????????????? | | ?????????????????????????????????????????????????? | | ?????????????????????????????????????????????????? | +----------------------------------------------------+ Best States ------------- Heat Dissipation 67 Energy Generation 19 Energy Capacity 185 Matter Stores 300 Matter Capacity 300 Sight Range 16 Terrain Scan Range 16 Terrain Scan Density 10 Armor Coverage 800 Evasion (%) 62 Recoil Reduction 3 Item Schematics ----------------- None Robot Schematics ------------------ None Fabricated ------------ Nothing Repaired ---------- Nothing Studied --------- None Alien Tech Used ----------------- None Achievements -------------- None Challenges ------------ None RPGLIKE | -11 -10 -10 -7 --------- Run | Yrd Mat Sub Rec Levels Raised 5 | . 3 1 1 XP Earned 10906 | 3000 5251 1655 1000 XP Spent 8445 | 2970 3750 1725 . Upgrades 22 | 10 9 3 . Power Slot 1 | . 1 . . Propulsion Slot 2 | 1 1 . . Utility Slot 3 | 1 1 1 . Weapon Slot 1 | 1 . . . Core Integrity 1 | . . 1 . Heat Dissipation 7 | 4 3 . . Mass Support 2 | . 1 1 . Inventory Capacity 2 | 2 . . . Ranged Accuracy 3 | 1 2 . . Protomatter Created 668 | . 284 384 . Integrity Restored 1614 | . 812 802 . Core 1477 | . 696 781 . Parts 137 | . 116 21 . Protomatter Decayed 71 | . 9 62 . Game ------ Seed TargetLightpackInterface Manual? 0 Play Time 00:25:56 Cumulative 455.8 hours Start 2025.11.18 @ 15:11:45 End 2025.11.18 @ 15:37:39 Sessions 1 Manual Loads 0 Difficulty Rogue Special Mode Winter2019/RPGLIKE Game No. 168 Rogue 14 Adventurer 154 Explorer 0 Win Type - Total 18 Types 3/3/3/3/2/1/0/1/1/1 Lore% 92 Gallery% 84 Achievement% 61 Wizard Run 0 Options --------- Layout 2 ASCII 0 Keyboard 0 Movement Numpad Keybinds 0 Fullscreen 2 Font 24/Smallcaps Map View 50x44 Zoom Use 0% Tactical HUD 1 Map Filters NONE Filters NONE Steam 1 RUN: 5c8fc1fd-3b06-4915-8067-f9707f2590b5